[Event "Early-Titled-Tuesday-Blitz-January-30-2024"]
[Site "Chess.com"]
[Date "2024.01.30"]
[Round "5"]
[White "vlad10898"]
[Black "gm_rashid"]
[Result "1-0"]
[WhiteElo "2813"]
[BlackElo "2535"]
[TimeControl "180+1"]
[EndTime "8:58:18 PST"]
[Termination "vlad10898 won by checkmate"]

1. Nf3 {[%clk 0:03:00.9]} 1... d5 {[%clk 0:02:58.6]} 2. e3 {[%clk 0:02:59.5]}
2... Nf6 {[%clk 0:02:56.2]} 3. c4 {[%clk 0:02:58.3]} 3... g6 {[%clk 0:02:50.8]}
4. cxd5 {[%clk 0:02:40.1]} 4... Nxd5 {[%clk 0:02:50.1]} 5. Nc3 {[%clk
0:02:40.7]} 5... Bg7 {[%clk 0:02:44.4]} 6. h4 {[%clk 0:02:37]} 6... h5 {[%clk
0:02:43]} 7. Qb3 {[%clk 0:02:11.3]} 7... Nxc3 {[%clk 0:02:37.6]} 8. bxc3 {[%clk
0:02:10.9]} 8... O-O {[%clk 0:02:33]} 9. d4 {[%clk 0:02:03.2]} 9... c5 {[%clk
0:02:32.6]} 10. Bd3 {[%clk 0:01:45.6]} 10... Nc6 {[%clk 0:02:30.3]} 11. Ng5
{[%clk 0:01:29.2]} 11... Na5 {[%clk 0:02:19.7]} 12. Qa3 {[%clk 0:01:20.9]} 12...
cxd4 {[%clk 0:02:15.7]} 13. cxd4 {[%clk 0:01:21]} 13... e5 {[%clk 0:02:09.4]}
14. dxe5 {[%clk 0:01:03.2]} 14... Bxe5 {[%clk 0:02:06.9]} 15. Rb1 {[%clk
0:01:02.9]} 15... b6 {[%clk 0:01:47]} 16. O-O {[%clk 0:00:54.4]} 16... Bb7
{[%clk 0:01:41.3]} 17. Bb2 {[%clk 0:00:52.5]} 17... Bxb2 {[%clk 0:01:37.9]} 18.
Rxb2 {[%clk 0:00:52.3]} 18... Rc8 {[%clk 0:01:29]} 19. Rc2 {[%clk 0:00:28.1]}
19... Rxc2 {[%clk 0:01:15.5]} 20. Bxc2 {[%clk 0:00:28.2]} 20... Qc8 {[%clk
0:01:08.1]} 21. Bd1 {[%clk 0:00:20.2]} 21... Rd8 {[%clk 0:00:58.7]} 22. Qb2
{[%clk 0:00:16.2]} 22... Rd6 {[%clk 0:00:21.2]} 23. Qe5 {[%clk 0:00:12.7]} 23...
Qd8 {[%clk 0:00:18.5]} 24. Bf3 {[%clk 0:00:09.8]} 24... Qf6 {[%clk 0:00:17.4]}
25. Qe8+ {[%clk 0:00:07.5]} 25... Kg7 {[%clk 0:00:17.3]} 26. Bxb7 {[%clk
0:00:07.7]} 26... Nxb7 {[%clk 0:00:15.1]} 27. Ne4 {[%clk 0:00:07.9]} 27... Qd8
{[%clk 0:00:14.5]} 28. Nxd6 {[%clk 0:00:08.1]} 28... Qxd6 {[%clk 0:00:14.4]} 29.
Qe4 {[%clk 0:00:08.2]} 29... Nc5 {[%clk 0:00:14]} 30. Qd4+ {[%clk 0:00:08.6]}
30... Qf6 {[%clk 0:00:14.1]} 31. Rd1 {[%clk 0:00:07.7]} 31... Qxd4 {[%clk
0:00:13]} 32. Rxd4 {[%clk 0:00:06.8]} 32... Kf6 {[%clk 0:00:12.9]} 33. f3 {[%clk
0:00:07.2]} 33... Ke5 {[%clk 0:00:12.5]} 34. Kf2 {[%clk 0:00:07.6]} 34... f6
{[%clk 0:00:11.9]} 35. g4 {[%clk 0:00:06.7]} 35... hxg4 {[%clk 0:00:11.7]} 36.
Rxg4 {[%clk 0:00:06.3]} 36... Kf5 {[%clk 0:00:11.2]} 37. Rd4 {[%clk 0:00:06]}
37... Ke5 {[%clk 0:00:11.2]} 38. f4+ {[%clk 0:00:04.3]} 38... Kf5 {[%clk
0:00:11.4]} 39. Kf3 {[%clk 0:00:04.8]} 39... a5 {[%clk 0:00:07.3]} 40. Rd6
{[%clk 0:00:03.7]} 40... Na4 {[%clk 0:00:06.9]} 41. e4# {[%clk 0:00:04.1]} 1-0

[Event "Early-Titled-Tuesday-Blitz-January-30-2024"]
[Site "Chess.com"]
[Date "2024.01.30"]
[Round "5"]
[White "Licancabur"]
[Black "ProChessWICTH"]
[Result "0-1"]
[WhiteElo "2430"]
[BlackElo "2544"]
[TimeControl "180+1"]
[EndTime "8:58:18 PST"]
[Termination "ProChessWICTH won on time"]

1. d4 {[%clk 0:03:00.1]} 1... Nf6 {[%clk 0:02:59.6]} 2. Bg5 {[%clk 0:03:00]}
2... Ne4 {[%clk 0:02:59.1]} 3. Bf4 {[%clk 0:03:00]} 3... d5 {[%clk 0:02:58.6]}
4. f3 {[%clk 0:02:59.5]} 4... Nf6 {[%clk 0:02:58.7]} 5. e4 {[%clk 0:02:59.7]}
5... dxe4 {[%clk 0:02:57.9]} 6. Nc3 {[%clk 0:03:00.1]} 6... exf3 {[%clk
0:02:52.2]} 7. Nxf3 {[%clk 0:02:46.8]} 7... Bf5 {[%clk 0:02:40.5]} 8. Bd3 {[%clk
0:02:40.3]} 8... Bxd3 {[%clk 0:02:38.7]} 9. Qxd3 {[%clk 0:02:40.4]} 9... c6
{[%clk 0:02:37.1]} 10. O-O-O {[%clk 0:02:28.3]} 10... e6 {[%clk 0:02:34.4]} 11.
Rhf1 {[%clk 0:02:25.6]} 11... Bd6 {[%clk 0:02:26.6]} 12. Ne5 {[%clk 0:02:24.7]}
12... Bxe5 {[%clk 0:02:00.3]} 13. Bxe5 {[%clk 0:02:22.7]} 13... Nbd7 {[%clk
0:02:00.1]} 14. Bd6 {[%clk 0:01:59.9]} 14... Qa5 {[%clk 0:01:42.3]} 15. Kb1
{[%clk 0:01:48.4]} 15... O-O-O {[%clk 0:01:38.5]} 16. h3 {[%clk 0:01:25.9]}
16... Rhe8 {[%clk 0:01:33.2]} 17. g4 {[%clk 0:01:16.6]} 17... h6 {[%clk
0:01:21.2]} 18. Qg3 {[%clk 0:01:10.2]} 18... Nf8 {[%clk 0:00:19.8]} 19. Be5
{[%clk 0:01:02.3]} 19... N8h7 {[%clk 0:00:19.5]} 20. h4 {[%clk 0:00:59.1]} 20...
Rd7 {[%clk 0:00:10.6]} 21. a3 {[%clk 0:00:53.6]} 21... Qd8 {[%clk 0:00:09.2]}
22. Na4 {[%clk 0:00:50.8]} 22... b6 {[%clk 0:00:08.3]} 23. g5 {[%clk 0:00:37]}
23... hxg5 {[%clk 0:00:09.2]} 24. hxg5 {[%clk 0:00:37.2]} 24... Nd5 {[%clk
0:00:09.7]} 25. Qd3 {[%clk 0:00:37.4]} 25... Nxg5 {[%clk 0:00:06.2]} 26. Qa6+
{[%clk 0:00:37.3]} 26... Rb7 {[%clk 0:00:06.9]} 27. c4 {[%clk 0:00:36.3]} 27...
Nc7 {[%clk 0:00:05.2]} 28. Bxc7 {[%clk 0:00:13.2]} 28... Qxc7 {[%clk 0:00:06.1]}
29. c5 {[%clk 0:00:10.5]} 29... b5 {[%clk 0:00:04.3]} 30. Nc3 {[%clk 0:00:10.6]}
30... Kb8 {[%clk 0:00:04.1]} 31. Rg1 {[%clk 0:00:09.5]} 31... f6 {[%clk
0:00:03.7]} 32. Rxg5 {[%clk 0:00:09.2]} 32... fxg5 {[%clk 0:00:03.6]} 33. Ne4
{[%clk 0:00:09.9]} 33... Rd8 {[%clk 0:00:02.5]} 34. Nd6 {[%clk 0:00:06.6]} 34...
Rxd6 {[%clk 0:00:02.5]} 35. cxd6 {[%clk 0:00:07.3]} 35... Qxd6 {[%clk
0:00:03.4]} 36. Rf1 {[%clk 0:00:07.5]} 36... Rd7 {[%clk 0:00:03.8]} 37. Qa5
{[%clk 0:00:06.2]} 37... Rd8 {[%clk 0:00:03.9]} 38. Qc3 {[%clk 0:00:05.5]} 38...
Qxd4 {[%clk 0:00:04.2]} 39. Qxc6 {[%clk 0:00:05.1]} 39... Qd3+ {[%clk
0:00:04.7]} 40. Ka2 {[%clk 0:00:03.6]} 40... Qxf1 {[%clk 0:00:05.4]} 41. Qxe6
{[%clk 0:00:02.7]} 41... Qc4+ {[%clk 0:00:05.7]} 42. Qxc4 {[%clk 0:00:01.3]}
42... bxc4 {[%clk 0:00:06.6]} 0-1

[Event "Early-Titled-Tuesday-Blitz-January-30-2024"]
[Site "Chess.com"]
[Date "2024.01.30"]
[Round "5"]
[White "GP9isback23"]
[Black "garfield_pg"]
[Result "1-0"]
[WhiteElo "2639"]
[BlackElo "2458"]
[TimeControl "180+1"]
[EndTime "8:58:19 PST"]
[Termination "GP9isback23 won on time"]

1. Nf3 {[%clk 0:03:00.9]} 1... d5 {[%clk 0:02:59.7]} 2. g3 {[%clk 0:02:55.5]}
2... Nc6 {[%clk 0:02:58.1]} 3. d4 {[%clk 0:02:55.4]} 3... Bf5 {[%clk 0:02:58.7]}
4. Bg2 {[%clk 0:02:55.2]} 4... e6 {[%clk 0:02:58.2]} 5. O-O {[%clk 0:02:55.8]}
5... h6 {[%clk 0:02:49.9]} 6. b3 {[%clk 0:02:54.5]} 6... Nf6 {[%clk 0:02:48.5]}
7. Bb2 {[%clk 0:02:54.7]} 7... Nb4 {[%clk 0:02:39.1]} 8. Na3 {[%clk 0:02:39.1]}
8... Be7 {[%clk 0:02:23.3]} 9. c3 {[%clk 0:02:36.5]} 9... Nc6 {[%clk 0:02:22.6]}
10. c4 {[%clk 0:02:36.1]} 10... O-O {[%clk 0:02:22.1]} 11. Rc1 {[%clk 0:02:30]}
11... Nb4 {[%clk 0:02:17.3]} 12. Ra1 {[%clk 0:02:25.8]} 12... c6 {[%clk
0:02:16.2]} 13. Ne5 {[%clk 0:02:00.5]} 13... Nd7 {[%clk 0:02:05.1]} 14. Nd3
{[%clk 0:01:41.6]} 14... Qa5 {[%clk 0:01:26.8]} 15. Nc2 {[%clk 0:01:12.5]} 15...
dxc4 {[%clk 0:00:59.6]} 16. bxc4 {[%clk 0:01:06.7]} 16... Nxd3 {[%clk
0:00:35.5]} 17. exd3 {[%clk 0:01:05.4]} 17... Rac8 {[%clk 0:00:33.8]} 18. Ne3
{[%clk 0:01:02.1]} 18... Bh7 {[%clk 0:00:31]} 19. Qc2 {[%clk 0:00:53.7]} 19...
Bf6 {[%clk 0:00:29.8]} 20. Bc3 {[%clk 0:00:47.9]} 20... Qc7 {[%clk 0:00:25.6]}
21. Rab1 {[%clk 0:00:43.7]} 21... Rfd8 {[%clk 0:00:24]} 22. Rfd1 {[%clk
0:00:42.8]} 22... b6 {[%clk 0:00:23.4]} 23. Qb2 {[%clk 0:00:40.8]} 23... c5
{[%clk 0:00:20.9]} 24. d5 {[%clk 0:00:35.3]} 24... Bxc3 {[%clk 0:00:21.8]} 25.
Qxc3 {[%clk 0:00:35]} 25... e5 {[%clk 0:00:22]} 26. Bh3 {[%clk 0:00:30.7]} 26...
Re8 {[%clk 0:00:15.5]} 27. Re1 {[%clk 0:00:30.9]} 27... Rcd8 {[%clk 0:00:14.5]}
28. a4 {[%clk 0:00:28.4]} 28... Nf8 {[%clk 0:00:09.8]} 29. a5 {[%clk 0:00:27]}
29... Rd6 {[%clk 0:00:09.6]} 30. axb6 {[%clk 0:00:25.6]} 30... axb6 {[%clk
0:00:10.5]} 31. Ra1 {[%clk 0:00:25.5]} 31... g6 {[%clk 0:00:06]} 32. Ng4 {[%clk
0:00:23.1]} 32... f6 {[%clk 0:00:01.7]} 33. Nxh6+ {[%clk 0:00:22]} 33... Kg7
{[%clk 0:00:02.3]} 34. Ng4 {[%clk 0:00:22.4]} 34... Rd7 {[%clk 0:00:01.2]} 35.
Ne3 {[%clk 0:00:19.7]} 35... Rde7 {[%clk 0:00:01.6]} 36. Bg2 {[%clk 0:00:17]}
36... Kg8 {[%clk 0:00:02]} 37. Reb1 {[%clk 0:00:14.4]} 37... f5 {[%clk
0:00:01.6]} 38. Ra6 {[%clk 0:00:14.5]} 38... Nd7 {[%clk 0:00:01.5]} 39. Rba1
{[%clk 0:00:12.3]} 39... g5 {[%clk 0:00:01.8]} 40. Ra7 {[%clk 0:00:12.2]} 40...
Qd6 {[%clk 0:00:02.3]} 41. Ra8 {[%clk 0:00:11.4]} 41... f4 {[%clk 0:00:02]} 42.
Nf1 {[%clk 0:00:08.1]} 42... Kg7 {[%clk 0:00:02]} 43. Nd2 {[%clk 0:00:08.3]}
43... Kh6 {[%clk 0:00:02.1]} 44. R8a7 {[%clk 0:00:08.1]} 44... Nf6 {[%clk
0:00:01.4]} 45. R7a6 {[%clk 0:00:07.4]} 45... g4 {[%clk 0:00:01.1]} 46. Ne4
{[%clk 0:00:05.8]} 1-0

[Event "Early-Titled-Tuesday-Blitz-January-30-2024"]
[Site "Chess.com"]
[Date "2024.01.30"]
[Round "5"]
[White "brm72"]
[Black "Binary010"]
[Result "0-1"]
[WhiteElo "2684"]
[BlackElo "2912"]
[TimeControl "180+1"]
[EndTime "8:58:21 PST"]
[Termination "Binary010 won by resignation"]

1. e4 {[%clk 0:03:00.9]} 1... c5 {[%clk 0:02:55.6]} 2. Nf3 {[%clk 0:03:01.1]}
2... d6 {[%clk 0:02:54.9]} 3. d4 {[%clk 0:03:01.4]} 3... cxd4 {[%clk 0:02:55.1]}
4. Nxd4 {[%clk 0:03:02.3]} 4... Nf6 {[%clk 0:02:55.4]} 5. Nc3 {[%clk 0:03:02.9]}
5... a6 {[%clk 0:02:55.9]} 6. f3 {[%clk 0:03:03.3]} 6... e5 {[%clk 0:02:55.7]}
7. Nb3 {[%clk 0:03:03.8]} 7... Be6 {[%clk 0:02:55.5]} 8. Be3 {[%clk 0:03:04.4]}
8... Be7 {[%clk 0:02:55.9]} 9. Qd2 {[%clk 0:03:04.9]} 9... O-O {[%clk
0:02:56.5]} 10. O-O-O {[%clk 0:03:05.2]} 10... Nbd7 {[%clk 0:02:57.1]} 11. g4
{[%clk 0:03:05]} 11... b5 {[%clk 0:02:57.8]} 12. g5 {[%clk 0:03:05.4]} 12... Nh5
{[%clk 0:02:58]} 13. Kb1 {[%clk 0:03:03.8]} 13... Nb6 {[%clk 0:02:57.7]} 14. Nd5
{[%clk 0:02:57.1]} 14... Nxd5 {[%clk 0:02:57.7]} 15. exd5 {[%clk 0:02:58]} 15...
Bf5 {[%clk 0:02:58.2]} 16. Na5 {[%clk 0:02:51]} 16... f6 {[%clk 0:02:58.3]} 17.
Nc6 {[%clk 0:02:47.1]} 17... Qd7 {[%clk 0:02:58.6]} 18. h4 {[%clk 0:02:22]}
18... Rae8 {[%clk 0:02:58.1]} 19. Rg1 {[%clk 0:02:18.5]} 19... Bd8 {[%clk
0:02:51.1]} 20. Bd3 {[%clk 0:02:17.2]} 20... Bxd3 {[%clk 0:02:41.3]} 21. Qxd3
{[%clk 0:02:15.5]} 21... fxg5 {[%clk 0:02:19.6]} 22. Bxg5 {[%clk 0:02:11.5]}
22... Bb6 {[%clk 0:02:18.1]} 23. Rg4 {[%clk 0:02:05]} 23... Kh8 {[%clk
0:02:12.8]} 24. a4 {[%clk 0:01:53.1]} 24... Qf7 {[%clk 0:01:30]} 25. axb5 {[%clk
0:01:41.9]} 25... axb5 {[%clk 0:01:30.9]} 26. Rf1 {[%clk 0:01:26.2]} 26... Ra8
{[%clk 0:01:15.5]} 27. Qxb5 {[%clk 0:01:19.2]} 27... Bc5 {[%clk 0:01:15.4]} 28.
Qd3 {[%clk 0:01:09.1]} 28... Qb7 {[%clk 0:00:56.2]} 29. Bc1 {[%clk 0:00:44]}
29... Ra6 {[%clk 0:00:49.4]} 30. c4 {[%clk 0:00:21.1]} 30... Rfa8 {[%clk
0:00:44.5]} 31. f4 {[%clk 0:00:20.4]} 31... Ra3 {[%clk 0:00:29.9]} 32. Qd1
{[%clk 0:00:13.6]} 32... Nf6 {[%clk 0:00:11]} 33. Rg2 {[%clk 0:00:06.5]} 33...
Ne4 {[%clk 0:00:11]} 34. fxe5 {[%clk 0:00:03.5]} 34... Nc3+ {[%clk 0:00:10.8]}
35. Kc2 {[%clk 0:00:02.8]} 35... Qb3+ {[%clk 0:00:05.3]} 36. Kd2 {[%clk
0:00:02.7]} 36... Nxd1 {[%clk 0:00:06]} 37. Rxd1 {[%clk 0:00:03.6]} 37... Be3+
{[%clk 0:00:04.3]} 38. Ke2 {[%clk 0:00:04.2]} 38... Bxc1 {[%clk 0:00:03.8]} 39.
exd6 {[%clk 0:00:04.8]} 39... Qxb2+ {[%clk 0:00:03.5]} 40. Kf1 {[%clk
0:00:04.8]} 40... Rf8+ {[%clk 0:00:04.2]} 41. Kg1 {[%clk 0:00:04.9]} 41... Qf6
{[%clk 0:00:04.8]} 42. d7 {[%clk 0:00:04.1]} 42... Be3+ {[%clk 0:00:03.6]} 43.
Kh1 {[%clk 0:00:03.7]} 43... Qxh4+ {[%clk 0:00:03.8]} 44. Rh2 {[%clk 0:00:04.6]}
44... Qe4+ {[%clk 0:00:04.3]} 45. Rg2 {[%clk 0:00:05.1]} 45... Qh4+ {[%clk
0:00:04.3]} 46. Rh2 {[%clk 0:00:05.5]} 46... Qe4+ {[%clk 0:00:04.3]} 47. Rg2
{[%clk 0:00:06.2]} 47... Bg5 {[%clk 0:00:04.4]} 48. Kh2 {[%clk 0:00:06.3]} 48...
Qh4+ {[%clk 0:00:03.6]} 49. Kg1 {[%clk 0:00:05.7]} 49... Be3+ {[%clk 0:00:04.4]}
0-1

[Event "Early-Titled-Tuesday-Blitz-January-30-2024"]
[Site "Chess.com"]
[Date "2024.01.30"]
[Round "5"]
[White "jaskol95"]
[Black "IngOscarArdila"]
[Result "1-0"]
[WhiteElo "2535"]
[BlackElo "2322"]
[TimeControl "180+1"]
[EndTime "8:58:23 PST"]
[Termination "jaskol95 won by resignation"]

1. e4 {[%clk 0:03:00.9]} 1... e5 {[%clk 0:02:59.6]} 2. Nf3 {[%clk 0:03:01]} 2...
Nf6 {[%clk 0:02:59.3]} 3. Nc3 {[%clk 0:02:54.1]} 3... Nc6 {[%clk 0:02:58.7]} 4.
Bc4 {[%clk 0:02:47.5]} 4... Bb4 {[%clk 0:02:57.5]} 5. Nd5 {[%clk 0:02:46.7]}
5... Ba5 {[%clk 0:02:56.8]} 6. O-O {[%clk 0:02:45.6]} 6... d6 {[%clk 0:02:56.1]}
7. d3 {[%clk 0:02:44.3]} 7... Nxd5 {[%clk 0:02:50]} 8. exd5 {[%clk 0:02:37.8]}
8... Ne7 {[%clk 0:02:48]} 9. d4 {[%clk 0:02:38]} 9... exd4 {[%clk 0:02:43.3]}
10. Qxd4 {[%clk 0:02:34.9]} 10... O-O {[%clk 0:02:38.1]} 11. Bd3 {[%clk
0:02:26.7]} 11... Bb6 {[%clk 0:02:32.4]} 12. Qh4 {[%clk 0:02:16.7]} 12... Ng6
{[%clk 0:02:17.3]} 13. Qh5 {[%clk 0:02:13.9]} 13... f5 {[%clk 0:02:00]} 14. Ng5
{[%clk 0:02:02.9]} 14... h6 {[%clk 0:01:52.7]} 15. Qxg6 {[%clk 0:01:56.2]} 15...
hxg5 {[%clk 0:01:52.5]} 16. Bxg5 {[%clk 0:01:52.9]} 16... Qe8 {[%clk 0:01:52.2]}
17. Qxe8 {[%clk 0:01:52.5]} 17... Rxe8 {[%clk 0:01:52.3]} 18. Rae1 {[%clk
0:01:52.8]} 18... Bd7 {[%clk 0:01:50.3]} 19. c3 {[%clk 0:01:48.6]} 19... Kf7
{[%clk 0:01:47.7]} 20. g3 {[%clk 0:01:42.6]} 20... a5 {[%clk 0:01:39.9]} 21. Kg2
{[%clk 0:01:41.8]} 21... Re5 {[%clk 0:01:34]} 22. Bf4 {[%clk 0:01:29.5]} 22...
Rxe1 {[%clk 0:01:17.7]} 23. Rxe1 {[%clk 0:01:29.2]} 23... Re8 {[%clk 0:01:17.2]}
24. Rxe8 {[%clk 0:01:24.8]} 24... Kxe8 {[%clk 0:01:16.6]} 25. Kf3 {[%clk
0:01:15.1]} 25... Kf7 {[%clk 0:01:16.3]} 26. Be3 {[%clk 0:01:14]} 26... Bxe3
{[%clk 0:01:13.3]} 27. Kxe3 {[%clk 0:01:14.9]} 27... Kf6 {[%clk 0:01:12.7]} 28.
f4 {[%clk 0:00:58.4]} 28... g5 {[%clk 0:00:55.1]} 29. fxg5+ {[%clk 0:00:57.4]}
29... Kxg5 {[%clk 0:00:54.9]} 30. Be2 {[%clk 0:00:53.3]} 30... Ba4 {[%clk
0:00:44.2]} 31. h4+ {[%clk 0:00:51.4]} 31... Kf6 {[%clk 0:00:44]} 32. b3 {[%clk
0:00:40.1]} 32... Be8 {[%clk 0:00:41.3]} 33. Kf4 {[%clk 0:00:40.1]} 33... Bf7
{[%clk 0:00:39.3]} 34. c4 {[%clk 0:00:39.7]} 34... Be8 {[%clk 0:00:34.1]} 35.
Bd3 {[%clk 0:00:39.6]} 35... Bd7 {[%clk 0:00:34.2]} 36. h5 {[%clk 0:00:24]}
36... a4 {[%clk 0:00:33.5]} 37. bxa4 {[%clk 0:00:15.4]} 37... b6 {[%clk
0:00:26.7]} 38. h6 {[%clk 0:00:15.4]} 38... Kg6 {[%clk 0:00:16.3]} 39. h7 {[%clk
0:00:13.4]} 39... Kg7 {[%clk 0:00:14.2]} 40. Bxf5 {[%clk 0:00:13.6]} 40... Bxa4
{[%clk 0:00:14.4]} 41. Bd3 {[%clk 0:00:11.8]} 41... Bd1 {[%clk 0:00:12.3]} 42.
g4 {[%clk 0:00:11.8]} 42... Ba4 {[%clk 0:00:10.6]} 43. g5 {[%clk 0:00:10.2]}
43... Bd7 {[%clk 0:00:10.1]} 44. g6 {[%clk 0:00:09.4]} 44... Be8 {[%clk
0:00:10.1]} 45. Kg5 {[%clk 0:00:09.8]} 45... Bd7 {[%clk 0:00:10.2]} 46. h8=Q+
{[%clk 0:00:09.4]} 46... Kxh8 {[%clk 0:00:10.1]} 47. Kf6 {[%clk 0:00:10.1]}
47... Kg8 {[%clk 0:00:09.8]} 48. Ke7 {[%clk 0:00:08.6]} 48... Bg4 {[%clk
0:00:05.7]} 49. Kd8 {[%clk 0:00:08.8]} 49... c5 {[%clk 0:00:05.9]} 50. dxc6
{[%clk 0:00:08.9]} 50... d5 {[%clk 0:00:06.2]} 51. cxd5 {[%clk 0:00:09.3]} 51...
Kf8 {[%clk 0:00:06.4]} 52. d6 {[%clk 0:00:09.7]} 1-0

[Event "Early-Titled-Tuesday-Blitz-January-30-2024"]
[Site "Chess.com"]
[Date "2024.01.30"]
[Round "5"]
[White "LuisFSiles"]
[Black "Happy1712Drummer"]
[Result "1-0"]
[WhiteElo "2243"]
[BlackElo "2414"]
[TimeControl "180+1"]
[EndTime "8:58:23 PST"]
[Termination "LuisFSiles won on time"]

1. e4 {[%clk 0:03:00.9]} 1... c5 {[%clk 0:02:58.9]} 2. Nf3 {[%clk 0:03:00.4]}
2... e6 {[%clk 0:02:56.9]} 3. c3 {[%clk 0:03:00.1]} 3... Nf6 {[%clk 0:02:54.1]}
4. e5 {[%clk 0:03:00.1]} 4... Nd5 {[%clk 0:02:50.1]} 5. Bc4 {[%clk 0:03:00.7]}
5... Nc6 {[%clk 0:02:42.9]} 6. O-O {[%clk 0:02:59]} 6... Nb6 {[%clk 0:02:27.9]}
7. Bb3 {[%clk 0:02:58.2]} 7... d6 {[%clk 0:02:25.1]} 8. exd6 {[%clk 0:02:55.1]}
8... Bxd6 {[%clk 0:02:26]} 9. d4 {[%clk 0:02:55.4]} 9... O-O {[%clk 0:02:21.6]}
10. Bc2 {[%clk 0:02:34.2]} 10... g6 {[%clk 0:01:57.4]} 11. Bh6 {[%clk
0:02:32.3]} 11... Re8 {[%clk 0:01:57.2]} 12. Nbd2 {[%clk 0:02:13]} 12... cxd4
{[%clk 0:01:40.8]} 13. cxd4 {[%clk 0:02:13.9]} 13... Nd5 {[%clk 0:01:40.3]} 14.
Ne4 {[%clk 0:02:10.2]} 14... Bf8 {[%clk 0:01:40.4]} 15. Bg5 {[%clk 0:02:05.2]}
15... Be7 {[%clk 0:01:39.2]} 16. h4 {[%clk 0:02:00.7]} 16... Kg7 {[%clk
0:01:30.7]} 17. Qd2 {[%clk 0:01:59.4]} 17... Bxg5 {[%clk 0:01:25.6]} 18. hxg5
{[%clk 0:01:58]} 18... Rh8 {[%clk 0:01:18.8]} 19. Bb3 {[%clk 0:01:35.7]} 19...
h6 {[%clk 0:01:11.6]} 20. Nc3 {[%clk 0:01:27.3]} 20... Nxc3 {[%clk 0:01:04.9]}
21. Qxc3 {[%clk 0:01:20]} 21... Qa5 {[%clk 0:00:43]} 22. Qe3 {[%clk 0:00:52.7]}
22... hxg5 {[%clk 0:00:39.3]} 23. Nxg5 {[%clk 0:00:50.9]} 23... Rh5 {[%clk
0:00:30.2]} 24. Nf3 {[%clk 0:00:43.6]} 24... Bd7 {[%clk 0:00:23.7]} 25. g4
{[%clk 0:00:21.7]} 25... Rh3 {[%clk 0:00:22.2]} 26. Kg2 {[%clk 0:00:20.8]} 26...
Rah8 {[%clk 0:00:21.4]} 27. Rh1 {[%clk 0:00:20.7]} 27... Rxh1 {[%clk 0:00:19.9]}
28. Rxh1 {[%clk 0:00:21.6]} 28... Rxh1 {[%clk 0:00:20.2]} 29. Kxh1 {[%clk
0:00:22.5]} 29... Ne7 {[%clk 0:00:15]} 30. Ne5 {[%clk 0:00:20.4]} 30... Bc6+
{[%clk 0:00:08.7]} 31. Kh2 {[%clk 0:00:14.1]} 31... Bd5 {[%clk 0:00:08.6]} 32.
Kg3 {[%clk 0:00:12.7]} 32... Bxb3 {[%clk 0:00:08.4]} 33. axb3 {[%clk 0:00:13.6]}
33... Qd5 {[%clk 0:00:08.7]} 34. Qf4 {[%clk 0:00:13.3]} 34... f6 {[%clk
0:00:07.8]} 35. Nf3 {[%clk 0:00:13.2]} 35... g5 {[%clk 0:00:07.3]} 36. Qc1
{[%clk 0:00:11]} 36... Nc6 {[%clk 0:00:06.9]} 37. Qc5 {[%clk 0:00:10.5]} 37...
Qxc5 {[%clk 0:00:04.6]} 38. dxc5 {[%clk 0:00:11.4]} 38... Kf7 {[%clk 0:00:05]}
39. Nd2 {[%clk 0:00:11.9]} 39... Ne5 {[%clk 0:00:03.6]} 40. b4 {[%clk 0:00:09]}
40... Ke7 {[%clk 0:00:03.9]} 41. Nc4 {[%clk 0:00:08.6]} 41... Nxc4 {[%clk
0:00:02.1]} 42. c6 {[%clk 0:00:05.1]} 42... Ne5 {[%clk 0:00:02.7]} 43. c7 {[%clk
0:00:04.5]} 43... Nd7 {[%clk 0:00:03.4]} 44. c8=Q {[%clk 0:00:04]} 44... Nb6
{[%clk 0:00:01.4]} 45. Qc7+ {[%clk 0:00:04.3]} 45... Nd7 {[%clk 0:00:01.2]} 46.
Qxb7 {[%clk 0:00:05.2]} 1-0